bitfinex/quotes_SOLUSD_20240628
["timestamp","ask_amount","ask_price","bid_price","bid_amount"]
[1719565024575,15.89,145.59,145.56,24.0442]
[1719565024748,15.89,145.58,145.55,16.3426]
[1719565025148,15.89,145.58,145.55,23.213]
[1719565027777,3.56173853,145.64,145.53,17.1784]
[1719565027778,6.2899,145.63,145.53,17.1784]
[1719565027957,14.04814925,145.62,145.54,6.8707]
[1719565028269,63.56,145.6,145.54,6.8707]
[1719565028571,63.56,145.6,145.53,17.1784]
[1719565028572,10.48641072,145.59,145.53,17.1784]
[1719565028788,10.48641072,145.58,145.53,17.1784]
[1719565028949,10.48641072,145.59,145.53,17.1784]
[1719565029553,15.89,145.58,145.56,6.87]
[1719565029953,9.85163853,145.63,145.53,33.0684]
[1719565030268,15.89,145.58,145.55,6.8703]
[1719565031771,9.85163853,145.63,145.55,6.8703]
[1719565031975,10.48570487,145.62,145.57,6.8694]
[1719565032176,10.48570487,145.61,145.58,6.869]
[1719565032383,15.89,145.62,145.58,6.869]
[1719565032675,10.48463022,145.61,145.58,6.869]
[1719565032873,15.89,145.62,145.58,6.869]
[1719565034083,15.89,145.62,145.57,24.0425]
[1719565034978,15.89,145.61,145.57,24.0425]
[1719565035401,15.3371,145.65,145.59,17.1708]
[1719565035673,15.89,145.63,145.59,17.1708]
[1719565036063,15.3371,145.65,145.59,24.0392]
[1719565036265,15.89,145.63,145.59,24.0392]
[1719565036654,15.89,145.63,145.59,17.1708]
[1719565038083,15.3371,145.65,145.59,17.1708]
[1719565038253,10.48423809,145.64,145.59,17.1708]
[1719565038456,26.37423809,145.63,145.59,17.1708]
[1719565038657,15.89,145.63,145.59,17.1708]
[1719565038858,15.3371,145.65,145.59,17.1708]
[1719565039071,15.89,145.63,145.59,24.0393]
[1719565039783,15.3371,145.65,145.59,24.0393]
[1719565039967,15.89,145.63,145.59,24.0393]
[1719565040484,15.3371,145.65,145.59,24.0393]
[1719565040781,15.89,145.63,145.59,24.0393]
[1719565041280,10.48423809,145.62,145.59,24.0393]
[1719565041485,15.3371,145.65,145.59,24.0393]
[1719565041662,15.89,145.63,145.59,24.0393]
[1719565041863,10.48423476,145.62,145.59,17.1708]
[1719565042780,10.48423476,145.62,145.56,32.4739]
[1719565042781,15.89,145.61,145.56,32.4739]
[1719565042985,15.89,145.61,145.56,55.2335]
[1719565043780,10.48487792,145.6,145.56,55.2335]
[1719565044074,15.89,145.61,145.56,39.3435]
[1719565044284,15.89,145.59,145.56,15.2991]
[1719565044469,15.89,145.59,145.53,67.4253]
[1719565044671,15.89,145.59,145.53,51.5353]
[1719565044872,15.89,145.59,145.53,67.4253]
[1719565045069,15.89,145.59,145.54,6.8708]
[1719565045267,10.48580459,145.58,145.54,6.8708]
[1719565045596,15.89,145.59,145.54,6.8708]
[1719565045754,15.89,145.59,145.55,6.8704]
[1719565046455,10.48565089,145.58,145.55,6.8704]
[1719565046658,15.89,145.59,145.55,6.8704]
[1719565046867,10.48565206,145.58,145.55,6.8704]
[1719565047073,15.89,145.59,145.55,6.8704]
[1719565047377,10.48565089,145.58,145.55,6.8704]
[1719565047579,15.89,145.59,145.55,6.8704]
[1719565047777,10.48565089,145.58,145.55,6.8704]
[1719565048086,15.89,145.58,145.55,6.8704]
[1719565049674,3.56173853,145.63,145.55,6.8704]
[1719565049884,15.89,145.59,145.55,6.8704]
[1719565050184,10.48564618,145.58,145.53,33.0683]
[1719565050488,15.89,145.59,145.53,33.0683]
[1719565050792,10.48551967,145.58,145.54,6.8705]
[1719565051077,15.89,145.58,145.54,6.8705]
[1719565051296,15.89,145.58,145.55,6.8704]
[1719565052487,15.89,145.58,145.54,6.8708]
[1719565052685,3.56173853,145.62,145.54,6.8708]
[1719565053005,15.89,145.58,145.54,6.8708]
[1719565053480,15.89,145.58,145.55,1.14440506]
[1719565054694,3.56173853,145.62,145.55,8.01470506]
[1719565054994,10.48547919,145.61,145.56,1.14424781]
[1719565055294,26.37547919,145.6,145.55,17.1756]
[1719565055474,10.48547919,145.59,145.57,6.8694]
[1719565055670,15.89,145.6,145.57,6.8694]
[1719565055862,10.48486565,145.59,145.57,6.8694]
[1719565056062,15.89,145.6,145.56,6.8699]
[1719565056458,10.48487329,145.59,145.56,6.8699]
[1719565056657,15.89,145.6,145.56,6.8699]
[1719565056858,10.48490207,145.59,145.56,6.8699]
[1719565057088,15.89,145.6,145.56,6.8699]
[1719565057278,10.48489637,145.59,145.56,6.8699]
[1719565057481,3.56173853,145.63,145.56,6.8699]
[1719565057679,15.89,145.6,145.56,6.8699]
[1719565057915,10.48489731,145.59,145.56,6.8699]
[1719565058976,15.89,145.6,145.56,6.8699]
[1719565059181,10.48489731,145.59,145.56,6.8699]
[1719565059485,15.89,145.6,145.56,6.8699]
[1719565059686,18.89883853,145.65,145.58,6.869]
[1719565059881,15.89,145.63,145.58,22.759]
[1719565060066,10.48428518,145.62,145.58,22.759]
[1719565060391,15.89,145.63,145.58,6.869]
[1719565060392,10.48428518,145.61,145.58,6.869]
[1719565060764,15.89,145.62,145.58,6.869]
[1719565060966,10.48410571,145.61,145.58,6.869]
[1719565061173,15.89,145.62,145.59,1.37167608]
[1719565061374,10.48409924,145.61,145.57,33.3785]
[1719565061595,15.89,145.62,145.57,33.3785]
[1719565061782,10.48436723,145.61,145.57,33.3785]
[1719565062094,15.89,145.62,145.57,33.3785]
[1719565062288,10.4840656,145.61,145.57,40.2479]
[1719565062493,15.89,145.62,145.57,40.2479]
[1719565062674,10.4841049,145.61,145.57,40.2479]
[1719565062992,15.89,145.62,145.57,40.2479]
[1719565063171,10.48402645,145.61,145.57,40.2479]
[1719565063374,15.89,145.62,145.57,40.2479]
[1719565064295,26.37406456,145.61,145.57,40.2479]
[1719565064474,15.89,145.61,145.57,40.2479]
[1719565066488,15.3371,145.65,145.58,6.869]
[1719565066796,15.89,145.63,145.58,6.869]
[1719565066975,10.48397235,145.62,145.58,6.869]
[1719565067179,15.89,145.62,145.58,6.869]
[1719565068170,15.3371,145.65,145.58,6.869]
[1719565068468,15.89,145.62,145.58,6.869]
[1719565068995,15.3371,145.65,145.58,6.869]
[1719565069197,15.89,145.62,145.58,6.869]
[1719565069991,15.3371,145.65,145.59,8.23935137]
[1719565070201,15.89,145.63,145.59,8.23935137]
[1719565070378,10.48397,145.62,145.59,8.23935137]
[1719565070578,15.89,145.63,145.59,8.23935137]
[1719565071495,16.31383011,145.69,145.57,33.3785]
[1719565071496,35.28816864,145.69,145.57,50.5517]
[1719565071693,15.89,145.65,145.61,6.8676]
[1719565071885,15.89,145.65,145.62,1.37066893]
[1719565073189,31.72643011,145.69,145.62,1.37066893]
[1719565073383,15.89,145.65,145.62,1.37066893]
[1719565073697,16.31383011,145.69,145.63,6.8666]
[1719565073879,16.31383011,145.69,145.64,1.3701848]
[1719565074285,15.89,145.68,145.64,1.3701848]
[1719565074682,15.89,145.68,145.64,6.8661]
[1719565075786,32.20383011,145.69,145.64,6.8661]
[1719565076196,32.20383011,145.69,145.65,0.48487908]
[1719565077512,32.20383011,145.69,145.65,7.35057908]
[1719565078008,16.31383011,145.69,145.65,7.35057908]
[1719565079096,16.31383011,145.69,145.66,6.8652]
[1719565079408,16.31383011,145.69,145.67,0.4848125]
[1719565079897,15.89,145.7,145.66,0.48481291]
[1719565080302,15.89,145.7,145.65,24.0294]
[1719565080490,0.8330381,145.71,145.63,6.8666]
[1719565080689,15.89,145.67,145.63,6.8666]
[1719565080887,15.89,145.67,145.62,16.0898]
[1719565081190,15.89,145.65,145.62,16.0898]
[1719565082908,15.89,145.66,145.62,22.9568]
[1719565083101,15.89,145.66,145.62,33.2572]
[1719565083408,0.8330381,145.71,145.66,6.8653]
[1719565083710,15.89,145.69,145.67,6.8647]
[1719565084099,0.8330381,145.71,145.67,6.8647]
[1719565084892,16.7230381,145.71,145.67,6.8647]
[1719565087518,0.8330381,145.71,145.69,6.8638]
[1719565088017,0.8330381,145.71,145.7,6.8634]
[1719565089497,0.8330381,145.71,145.7,22.7534]
[1719565093027,0.8330381,145.71,145.7,24.12553059]
[1719565095317,0.8330381,145.71,145.7,22.7534]
[1719565096013,0.8330381,145.71,145.7,6.8634]
[1719565099617,0.8330381,145.71,145.69,6.8637]
[1719565101900,0.8330381,145.71,145.7,6.8634]
[1719565107039,0.8330381,145.71,145.69,6.8638]
[1719565107318,0.8330381,145.71,145.68,24.0244]
[1719565107505,0.8330381,145.71,145.69,6.8637]
[1719565108320,0.8330381,145.71,145.7,6.8634]
[1719565110329,0.8330381,145.71,145.68,17.1601]
[1719565110630,0.8330381,145.71,145.69,6.8635]
[1719565112029,0.8330381,145.71,145.7,6.8634]
[1719565112335,0.8330381,145.71,145.69,6.8638]
[1719565112519,0.8330381,145.71,145.7,6.8634]
[1719565113005,0.8330381,145.71,145.69,6.8637]
[1719565113721,0.8330381,145.71,145.68,24.0244]
[1719565114031,16.7230381,145.71,145.68,24.0244]
[1719565115712,0.8330381,145.71,145.69,6.8637]
[1719565116421,16.7230381,145.71,145.67,17.1615]
[1719565116609,16.7230381,145.71,145.68,6.8642]
[1719565117230,0.8330381,145.71,145.69,6.8638]
[1719565120624,0.8330381,145.71,145.68,6.8642]
[1719565120840,0.8330381,145.71,145.69,6.8638]
[1719565121020,16.7230381,145.71,145.69,6.8638]
[1719565121224,6.44554291,145.7,145.69,6.8638]
[1719565122716,6.44554291,145.7,145.68,6.8642]
[1719565124840,6.44554291,145.7,145.69,6.8638]
[1719565126036,6.44554291,145.7,145.68,6.8642]
[1719565127946,6.44554291,145.7,145.69,6.8638]
[1719565128346,16.7230381,145.71,145.69,6.8638]
[1719565128542,0.8330381,145.71,145.69,6.8638]
[1719565128733,16.7230381,145.71,145.69,6.8638]
[1719565131231,15.89,145.7,145.67,17.1615]
[1719565131535,6.44554683,145.69,145.67,24.0262]
[1719565132629,22.33554683,145.69,145.67,24.0262]
[1719565132833,6.44554683,145.68,145.67,24.0262]
[1719565136332,15.89,145.69,145.67,24.0262]
[1719565137246,15.89,145.69,145.67,17.1615]
[1719565137839,15.89,145.68,145.67,17.1615]
[1719565138239,15.89,145.68,145.66,6.8651]
[1719565139852,0.8330381,145.71,145.66,6.8651]
[1719565140055,15.89,145.69,145.66,6.8651]
[1719565140255,0.8330381,145.71,145.67,6.8647]
[1719565140657,0.8330381,145.71,145.68,17.1602]
[1719565140961,0.8330381,145.71,145.69,6.8638]
[1719565142156,0.8330381,145.71,145.68,24.0244]
[1719565142658,0.8330381,145.71,145.69,6.8638]
[1719565144357,0.8330381,145.71,145.68,24.0244]
[1719565147060,0.8330381,145.71,145.69,8.23641462]
[1719565147363,0.8330381,145.71,145.69,1.37261462]
[1719565148458,0.8330381,145.71,145.68,17.1602]
[1719565149171,0.8330381,145.71,145.68,24.0244]
[1719565149756,0.8330381,145.71,145.69,6.8638]
[1719565150147,0.8330381,145.71,145.7,6.8634]
[1719565150455,0.8330381,145.71,145.68,17.1602]
[1719565151771,0.8330381,145.71,145.68,24.0244]
[1719565151947,0.8330381,145.71,145.68,39.9144]
[1719565156666,0.8330381,145.71,145.69,6.8636]
[1719565157269,0.8330381,145.71,145.68,17.1602]
[1719565157474,0.8330381,145.71,145.67,6.8644]
[1719565157475,16.7230381,145.71,145.67,6.8644]
[1719565160157,16.7230381,145.71,145.66,6.8652]
[1719565160357,0.8330381,145.71,145.65,24.0294]
[1719565160676,15.89,145.69,145.66,6.8651]
[1719565161472,15.89,145.69,145.66,6.8652]
[1719565162474,30.9671,145.7,145.67,6.8646]
[1719565162879,30.9671,145.7,145.65,17.1638]
[1719565163059,15.89,145.69,145.65,24.0292]
[1719565163258,15.89,145.69,145.66,6.8652]
[1719565163457,15.89,145.69,145.62,17.1678]
[1719565163664,15.89,145.69,145.63,15.89]
[1719565163864,15.0771,145.7,145.63,15.89]
[1719565164072,30.9671,145.7,145.65,15.89]
[1719565164672,15.89,145.69,145.64,15.89]
[1719565164973,30.9671,145.7,145.67,6.8647]
[1719565166473,15.0771,145.7,145.67,6.8647]
[1719565166672,30.9671,145.7,145.67,6.8647]
[1719565166984,15.0771,145.7,145.67,6.8647]
[1719565167281,30.9671,145.7,145.67,6.8647]
[1719565168283,30.9671,145.7,145.66,24.0274]
[1719565169288,0.8330381,145.71,145.68,17.1602]
[1719565169691,0.8330381,145.71,145.7,6.8634]
[1719565177873,0.8330381,145.71,145.7,22.7534]
[1719565178781,0.8330381,145.71,145.7,6.8634]
[1719565179091,0.8330381,145.71,145.7,22.7534]
[1719565179278,15.89,145.78,145.73,6.8617]
[1719565179683,15.89,145.78,145.73,22.7517]
[1719565180670,6.415,145.8,145.74,17.1533]
[1719565180872,15.89,145.78,145.74,24.0147]
[1719565184574,6.415,145.8,145.71,17.1569]
[1719565184782,15.89,145.75,145.71,17.1569]
[1719565185391,15.89,145.75,145.71,24.0193]
[1719565186374,15.89,145.75,145.72,6.8623]
[1719565186599,15.89,145.75,145.71,17.1569]
[1719565186804,6.415,145.8,145.71,17.1569]
[1719565186805,15.89,145.74,145.71,17.1569]
[1719565187099,15.89,145.74,145.71,24.0195]
[1719565187485,15.89,145.75,145.72,6.8623]
[1719565188582,16.0448,145.76,145.72,6.8623]
[1719565188782,15.89,145.75,145.72,6.8623]
[1719565189798,15.89,145.75,145.67,17.1569]
[1719565189799,22.4889,145.74,145.67,17.1569]
[1719565189973,15.89,145.69,145.64,15.89]
[1719565190180,15.89,145.69,145.65,17.1639]
[1719565190377,15.89,145.68,145.65,17.1639]
[1719565190803,15.89,145.69,145.65,24.0296]
[1719565191604,15.89,145.69,145.66,6.8651]
[1719565191789,86.0489,145.74,145.67,6.8648]
[1719565191986,15.89,145.71,145.68,6.864]
[1719565192398,15.89,145.71,145.67,24.0259]
[1719565192584,15.89,145.7,145.67,24.0259]
[1719565192976,15.89,145.69,145.64,17.1653]
[1719565193182,15.89,145.69,145.65,6.8654]
[1719565193686,15.89,145.68,145.65,6.8654]
[1719565194882,15.89,145.66,145.63,6.8664]
[1719565195083,15.89,145.65,145.63,6.8664]
[1719565195798,15.89,145.66,145.63,6.8664]
[1719565196981,15.89,145.66,145.64,6.8662]
[1719565197203,22.0933,145.69,145.65,6.8655]
[1719565197406,15.89,145.68,145.65,6.8655]
[1719565199811,15.89,145.68,145.64,6.8661]
[1719565201007,15.89,145.67,145.63,17.1657]
[1719565201308,22.0933,145.69,145.64,6.8661]
[1719565201507,15.89,145.7,145.65,6.8657]
[1719565201805,15.89,145.71,145.66,6.8652]
[1719565202416,21.5583,145.73,145.66,6.8652]
[1719565202707,15.89,145.71,145.66,6.8652]
[1719565202905,15.89,145.7,145.63,23.1205]
[1719565203112,15.89,145.69,145.63,32.1439]
[1719565203712,15.89,145.69,145.64,6.8662]
[1719565206187,15.89,145.67,145.62,17.1673]
[1719565206906,15.89,145.67,145.62,24.0344]
[1719565207107,21.5583,145.73,145.61,6.6287]
[1719565207316,15.89,145.66,145.6,6.8677]
[1719565207488,15.89,145.65,145.61,6.8673]
[1719565207689,15.89,145.66,145.61,6.8673]
[1719565208092,15.89,145.66,145.62,6.8671]
[1719565208584,21.5583,145.73,145.63,15.89]
[1719565208788,15.89,145.69,145.64,6.8659]
[1719565209097,15.89,145.7,145.65,6.8656]
[1719565209708,15.89,145.7,145.64,15.89]
[1719565209709,21.5583,145.73,145.66,6.8652]
[1719565209910,15.89,145.71,145.66,6.8652]
[1719565210110,21.5583,145.73,145.66,6.8652]
[1719565210316,15.89,145.71,145.66,6.8652]
[1719565210836,15.89,145.7,145.66,6.8652]
[1719565211399,15.89,145.7,145.64,22.0152]
[1719565211715,15.89,145.7,145.65,6.8655]
[1719565212899,15.89,145.7,145.64,31.0394]
[1719565213105,15.89,145.67,145.63,24.0322]
[1719565213310,15.89,145.67,145.6,22.2967]
[1719565213514,15.89,145.66,145.6,22.2967]
[1719565213722,15.89,145.66,145.6,38.1867]
[1719565213906,15.89,145.66,145.61,6.8672]
[1719565214108,15.89,145.66,145.62,6.867]
[1719565214712,15.89,145.67,145.63,6.8666]
[1719565214915,21.5583,145.73,145.64,6.8661]
[1719565214916,15.89,145.68,145.64,6.8661]
[1719565215440,15.89,145.68,145.65,6.8657]
[1719565215803,15.89,145.69,145.65,6.8657]
[1719565216025,21.5583,145.73,145.63,33.0559]
[1719565216200,21.5583,145.73,145.66,6.8651]
[1719565216403,21.5583,145.73,145.61,55.0166]
[1719565216404,15.0555,145.73,145.67,15.89]
[1719565216622,30.9455,145.73,145.67,15.89]
[1719565217126,30.9455,145.73,145.68,6.8642]
[1719565217807,30.9455,145.73,145.67,39.9157]
[1719565218840,15.89,145.72,145.67,24.0257]
[1719565219511,15.89,145.71,145.65,15.89]
[1719565219718,15.89,145.71,145.65,22.7557]
[1719565221107,15.89,145.71,145.65,15.89]
[1719565221329,6.8625,145.72,145.67,6.8647]
[1719565221544,15.89,145.71,145.67,6.8647]
[1719565221933,15.89,145.71,145.66,6.8652]
[1719565222716,15.89,145.68,145.64,24.0312]
[1719565223112,15.89,145.68,145.65,6.8657]
[1719565223405,15.89,145.68,145.64,17.1655]
[1719565223406,15.89,145.68,145.66,6.865]
[1719565223606,15.89,145.69,145.66,6.865]
[1719565224554,15.89,145.7,145.66,6.865]
[1719565225742,15.89,145.69,145.65,6.8656]
[1719565227219,15.89,145.67,145.61,17.1685]
[1719565227431,15.89,145.67,145.61,33.0585]
[1719565227629,15.89,145.67,145.63,6.8663]
[1719565227832,15.89,145.68,145.64,6.8661]
[1719565228033,15.89,145.68,145.65,6.8657]
[1719565228224,15.89,145.68,145.64,6.8661]
[1719565229047,6.8635,145.7,145.64,6.8661]
[1719565229256,6.4944,145.72,145.65,17.1636]
[1719565229432,15.89,145.7,145.65,17.1636]
[1719565229633,15.89,145.7,145.66,6.8652]
[1719565229831,15.89,145.7,145.65,24.0292]
[1719565230347,15.89,145.7,145.66,6.8652]
[1719565232328,15.89,145.69,145.66,6.8652]
[1719565233028,6.4944,145.72,145.66,6.8652]
[1719565233357,15.89,145.69,145.66,6.8652]
[1719565235133,15.89,145.7,145.66,6.8652]
[1719565237652,15.89,145.7,145.65,24.0293]
[1719565238235,15.89,145.71,145.66,6.8652]
[1719565239556,15.0555,145.73,145.69,6.8635]
[1719565239763,6.0382,145.76,145.7,17.26249426]
[1719565239969,6.0382,145.76,145.67,15.89]
[1719565239970,21.9282,145.76,145.71,1.37237136]
[1719565240136,6.0382,145.76,145.71,22.7529]
[1719565240461,32.0569,145.77,145.72,8.2347389]
[1719565240976,32.0569,145.77,145.72,17.2623389]
[1719565241253,38.9172,145.77,145.72,17.2623389]
[1719565241431,38.9172,145.77,145.72,15.89]
[1719565241631,38.9172,145.77,145.71,34.41895382]
[1719565241856,15.89,145.76,145.71,34.41895382]
[1719565243071,22.7511,145.75,145.68,39.9264]
[1719565243380,15.89,145.74,145.68,39.9264]
[1719565243538,15.89,145.74,145.69,6.8638]
[1719565243936,15.89,145.74,145.68,39.9264]
[1719565244144,15.89,145.74,145.69,6.8638]
[1719565244562,15.89,145.74,145.69,22.7538]
[1719565246073,16.1669,145.77,145.65,40.9858]
[1719565246074,6.6244,145.75,145.65,40.9858]
[1719565246250,15.89,145.72,145.66,15.89]
[1719565246564,15.89,145.72,145.67,6.8643]
[1719565246770,15.89,145.72,145.68,6.8643]
[1719565251776,15.89,145.73,145.68,6.8643]
[1719565253971,15.89,145.72,145.67,24.026]
[1719565254272,15.89,145.71,145.67,24.026]
[1719565258379,22.7543,145.68,145.61,6.8671]
[1719565258672,15.89,145.65,145.61,17.1685]
[1719565258855,15.89,145.64,145.6,6.868]
[1719565260065,15.89,145.64,145.61,6.8676]
[1719565260265,15.89,145.64,145.6,6.868]
[1719565260787,6.5689,145.66,145.58,17.1721]
[1719565260950,15.89,145.61,145.58,17.1721]
[1719565262256,15.89,145.61,145.58,24.0411]
[1719565262974,15.89,145.62,145.59,6.8685]
[1719565263167,15.89,145.63,145.59,6.8685]
[1719565264179,13.4343,145.66,145.6,6.868]
[1719565264380,15.89,145.64,145.6,6.868]
[1719565264576,6.5689,145.66,145.61,6.8675]
[1719565264774,15.89,145.65,145.61,6.8675]
[1719565265483,6.5689,145.66,145.61,6.8675]
[1719565265672,15.89,145.65,145.61,6.8675]
[1719565265871,15.89,145.65,145.6,39.9276]
[1719565266673,6.5689,145.66,145.6,24.0376]
[1719565267269,16.1044,145.67,145.61,6.8675]
[1719565268284,16.1044,145.67,145.62,17.1672]
[1719565268468,6.5174,145.7,145.62,17.1672]
[1719565269270,6.5174,145.7,145.62,24.0343]
[1719565269678,6.8644,145.68,145.62,17.1672]
[1719565270689,13.3812,145.7,145.62,24.0343]
[1719565271004,6.864,145.69,145.62,24.0343]
[1719565272987,6.8638,145.69,145.62,24.0343]
[1719565273779,6.8643,145.68,145.62,24.0343]
[1719565276568,6.5174,145.7,145.61,15.2965]
[1719565276777,6.8663,145.64,145.58,17.1719]
[1719565276979,17.1605,145.69,145.57,22.845]
[1719565277493,6.8668,145.63,145.57,15.9755]
[1719565277886,6.8663,145.64,145.57,22.845]
[1719565279991,6.8663,145.64,145.58,6.8689]
[1719565280794,6.8658,145.65,145.58,6.8689]
[1719565283372,17.1605,145.69,145.59,6.8685]
[1719565283572,6.8653,145.66,145.59,6.8685]
[1719565283979,6.8649,145.67,145.6,6.8679]
[1719565284371,6.8649,145.67,145.59,17.1709]
[1719565284572,6.8643,145.68,145.59,17.1709]
[1719565284779,16.2897,145.71,145.62,22.6141]
[1719565285079,16.2897,145.71,145.63,6.8663]
[1719565285288,16.2897,145.71,145.62,22.6141]
[1719565286380,6.8644,145.68,145.62,22.6141]
[1719565286787,15.88,145.68,145.62,32.0519]
[1719565286976,15.88,145.65,145.62,16.1719]
[1719565287188,15.88,145.65,145.59,22.7484]
[1719565287779,6.8663,145.64,145.58,39.6843]
[1719565287977,22.7458,145.65,145.59,15.88]
[1719565288184,17.1604,145.69,145.59,22.7485]
[1719565288185,6.8653,145.66,145.59,22.7485]
[1719565288380,17.1604,145.69,145.59,15.88]
[1719565288583,15.88,145.65,145.59,15.88]
[1719565288800,15.88,145.66,145.6,15.88]
[1719565289102,15.88,145.66,145.58,39.6843]
[1719565289600,15.88,145.66,145.6,6.868]
[1719565289894,15.88,145.66,145.6,22.748]
[1719565290083,6.8666,145.64,145.58,22.5121]
[1719565290508,6.8666,145.64,145.58,29.3811]
[1719565290886,6.8666,145.64,145.58,45.2611]
[1719565291087,6.8658,145.65,145.58,45.2611]
[1719565292681,6.1234,145.69,145.6,22.748]
[1719565292879,6.8648,145.67,145.61,15.88]
[1719565293200,6.8648,145.67,145.61,22.7476]
[1719565293201,22.7448,145.67,145.61,22.7476]
[1719565293383,22.7448,145.67,145.61,15.88]
[1719565293792,15.88,145.66,145.61,15.88]
[1719565294794,6.8644,145.68,145.61,22.7476]
[1719565294998,15.88,145.67,145.61,22.7476]
[1719565295588,15.88,145.67,145.62,15.88]
[1719565296084,15.88,145.66,145.59,17.1708]
[1719565296282,15.88,145.65,145.59,15.88]
[1719565297491,22.7458,145.65,145.59,15.88]
[1719565297878,6.8654,145.66,145.59,22.7484]
[1719565298086,15.88,145.65,145.59,22.7484]
[1719565298383,22.7463,145.64,145.58,22.5121]
[1719565298586,22.7463,145.64,145.58,38.3921]
[1719565299090,15.88,145.64,145.58,38.3921]
[1719565299681,22.7458,145.65,145.59,15.88]
[1719565299885,15.88,145.65,145.59,22.7485]
[1719565300813,22.7458,145.65,145.59,22.7485]
[1719565300990,22.7458,145.65,145.59,15.88]
[1719565301190,15.88,145.64,145.59,15.88]
[1719565301397,22.7464,145.64,145.58,16.3032]
[1719565301593,22.7469,145.63,145.58,16.3032]
[1719565301902,15.88,145.63,145.58,16.3032]
[1719565302402,15.88,145.63,145.58,32.1832]
[1719565303110,15.88,145.63,145.58,39.0522]
[1719565303305,6.8658,145.65,145.59,15.88]
[1719565303600,15.88,145.64,145.59,15.88]
[1719565304807,22.7462,145.64,145.58,39.0522]
[1719565306705,22.7462,145.64,145.58,32.1832]
[1719565307821,22.7462,145.64,145.58,16.3032]
[1719565308001,22.7462,145.64,145.58,32.1832]
[1719565308690,16.0932,145.66,145.58,16.3032]
[1719565308889,15.88,145.62,145.57,15.88]
[1719565309392,22.7475,145.62,145.56,17.1745]
[1719565309722,22.7475,145.62,145.56,33.0545]
[1719565309924,22.7475,145.62,145.56,39.9244]
[1719565310105,15.88,145.62,145.56,39.9244]
[1719565311117,16.0932,145.66,145.52,24.0506]
[1719565311118,15.88,145.58,145.52,24.0506]
[1719565311414,15.88,145.58,145.52,39.9306]
[1719565311590,15.88,145.58,145.53,15.88]
[1719565311791,15.88,145.58,145.52,39.9306]
[1719565312784,15.88,145.57,145.52,39.9306]
[1719565313812,15.88,145.58,145.52,39.9306]
[1719565316013,15.88,145.57,145.52,39.9306]
[1719565316215,6.8688,145.59,145.49,21.7918]
[1719565316216,15.88,145.53,145.49,32.7832]
[1719565316704,15.88,145.53,145.49,39.6564]
[1719565316898,6.8701,145.56,145.49,55.5364]
[1719565316899,15.88,145.54,145.49,55.5364]
[1719565317494,6.8696,145.57,145.5,6.8727]
[1719565317702,15.88,145.56,145.5,22.7527]
[1719565319209,22.75,145.56,145.5,22.7527]
[1719565319406,22.75,145.56,145.5,15.88]
[1719565320018,6.8704,145.55,145.5,15.88]
[1719565320225,22.75,145.56,145.49,39.6564]
[1719565320425,22.75,145.56,145.51,15.88]
[1719565321095,22.75,145.56,145.49,39.6564]
[1719565321419,6.871,145.54,145.5,15.88]
[1719565321622,6.871,145.54,145.49,15.6003]